bitfinex/quotes_ETHUSD_20240823
["timestamp","ask_amount","ask_price","bid_price","bid_amount"]
[1724382320609,1.13137894,2639.3,2638.8,5.152392]
[1724382322500,1.13137894,2639.3,2638.9,3.78945]
[1724382322693,1.13137894,2639.3,2639.0,0.55]
[1724382330145,6.89857716,2639.5,2639.0,4.33922]
[1724382330366,3.10994716,2639.5,2639.1,3.78916]
[1724382330568,1.97856822,2639.6,2639.2,0.55]
[1724382330867,9.89834716,2639.7,2639.2,0.55]
[1724382331046,9.89834716,2639.7,2639.2,4.33895]
[1724382331630,13.68675716,2639.7,2639.2,0.55]
[1724382332036,9.89834716,2639.7,2639.3,0.07689897]
[1724382332238,13.68675716,2639.7,2639.4,0.55]
[1724382332457,9.89834716,2639.7,2639.2,0.55]
[1724382332772,3.78846,2639.6,2639.3,0.07653163]
[1724382332928,9.8986542,2639.7,2639.4,0.55]
[1724382333132,6.8986542,2639.7,2639.4,0.55]
[1724382333333,6.8986542,2639.7,2639.5,0.07653163]
[1724382333761,6.8986542,2639.7,2639.3,0.55]
[1724382333983,6.8986542,2639.7,2639.6,0.07653163]
[1724382334133,6.8986542,2639.7,2639.3,0.55]
[1724382334349,6.8986542,2639.7,2639.6,0.07653163]
[1724382334527,6.8986542,2639.7,2639.3,0.55]
[1724382334741,6.8986542,2639.7,2639.6,0.07653163]
[1724382335276,6.8986542,2639.7,2639.3,0.55]
[1724382335568,6.8986542,2639.7,2639.4,0.07653163]
[1724382335777,6.8986542,2639.7,2639.5,0.55]
[1724382336157,6.8986542,2639.7,2639.6,0.07630989]
[1724382337781,6.89885658,2639.7,2639.6,0.07630989]
[1724382338342,1.97907764,2639.7,2639.6,0.07630989]
[1724382338542,1.13137894,2639.8,2639.6,0.62630989]
[1724382338543,1.97907764,2639.8,2639.6,0.62630989]
[1724382338764,1.97907764,2639.9,2639.6,1.12279188]
[1724382339081,1.97907764,2639.9,2639.7,0.55]
[1724382339082,1.13137894,2639.8,2639.7,0.55]
[1724382339444,1.13137894,2639.8,2639.7,0.07630989]
[1724382339670,1.13137894,2639.8,2639.7,0.55]
[1724382339841,1.13137894,2639.8,2639.7,0.07630989]
[1724382340043,1.13137894,2639.8,2639.7,0.62630989]
[1724382342614,9.36818668,2639.8,2639.7,0.07630989]
[1724382342888,9.36818668,2639.8,2639.2,3.78893]
[1724382343101,1.13137894,2639.6,2639.3,0.55]
[1724382343302,1.13137894,2639.6,2639.3,0.62618518]
[1724382346456,1.13137894,2639.6,2639.3,4.41504518]
[1724382347671,2.4665,2639.5,2639.3,0.62618518]
[1724382348036,1.13137894,2639.4,2639.3,0.62618518]
[1724382348531,1.13137894,2639.4,2639.3,4.41506518]
[1724382350669,1.13137894,2639.4,2639.3,0.62618518]
[1724382352721,3.11138616,2639.6,2639.3,0.62618518]
[1724382355166,1.98000722,2639.5,2639.3,0.62618518]
[1724382355603,3.11138616,2639.6,2639.3,0.62618518]
[1724382356167,1.98000722,2639.5,2639.3,0.62618518]
[1724382356605,1.98173039,2639.5,2639.3,0.62618518]
[1724382358297,1.98173039,2639.5,2639.3,1.0676987]
[1724382358483,3.11310933,2639.6,2639.3,4.8564987]
[1724382358800,1.98173039,2639.6,2639.3,4.8564987]
[1724382359001,1.98173039,2639.6,2639.3,1.0676987]
[1724382360210,1.98173039,2639.6,2639.3,0.62618518]
[1724382360819,1.98187433,2639.6,2639.3,0.62618518]
[1724382361712,1.98187433,2639.5,2639.3,0.62618518]
[1724382363878,1.98187433,2639.5,2639.4,10.00506]
[1724382364165,1.98187433,2639.9,2639.7,3.7883]
[1724382364439,1.98266015,2640.0,2639.8,0.55]
[1724382364729,1.98266015,2639.9,2639.8,0.62612975]
[1724382365084,8.61275218,2640.2,2639.8,0.62612975]
[1724382365085,1.98266015,2640.0,2639.8,0.62612975]
[1724382372241,1.98266015,2639.9,2639.8,0.62612975]
[1724382372443,1.98266015,2640.0,2639.8,0.62612975]
[1724382373264,1.98266015,2639.9,2639.8,0.62612975]
[1724382373845,3.11420013,2639.9,2639.8,0.62612975]
[1724382376122,1.98282119,2639.9,2639.8,0.62612975]
[1724382376668,1.98282119,2640.0,2639.8,0.62612975]
[1724382378346,1.13137894,2640.1,2639.8,0.62612975]
[1724382378554,3.11424829,2639.9,2639.8,0.62612975]
[1724382378850,7.25519894,2639.9,2639.8,0.07612975]
[1724382379010,3.78817,2639.8,2639.3,13.45088]
[1724382379241,1.98227518,2639.7,2639.3,16.419877]
[1724382379430,1.98227518,2639.7,2639.3,20.208657]
[1724382379913,1.98227518,2639.7,2639.4,4.33873]
[1724382380521,7.25519894,2639.9,2639.4,4.33873]
[1724382380522,1.98227518,2639.8,2639.6,3.78843]
[1724382380723,1.98227518,2639.9,2639.7,0.55]
[1724382381615,1.98227518,2639.8,2639.7,0.55]
[1724382382155,1.98227518,2639.9,2639.7,0.55]
[1724382382852,1.98234113,2639.9,2639.7,0.55]
[1724382383438,1.98234113,2639.9,2639.7,4.33826]
[1724382383650,1.98234113,2639.9,2639.7,5.150929]
[1724382386954,1.98234113,2639.9,2639.7,7.465229]
[1724382387182,1.98234113,2639.9,2639.8,0.07319104]
[1724382387335,1.98234113,2639.9,2639.8,4.41135104]
[1724382387520,1.98234113,2640.0,2639.8,4.41135104]
[1724382387724,1.13137894,2640.1,2639.9,0.55]
[1724382388125,1.13137894,2640.1,2640.0,0.07319104]
[1724382392128,1.13137894,2640.1,2640.0,0.62319104]
[1724382393767,3.11464296,2640.1,2640.0,0.62319104]
[1724382394064,1.13137894,2640.1,2640.0,0.62319104]
[1724382404362,1.98527494,2640.2,2640.0,1.06431114]
[1724382404575,1.99379991,2640.4,2640.2,6.04639]
[1724382404774,0.00852497,2640.4,2640.3,0.07271316]
[1724382404981,0.00852497,2640.4,2640.3,4.94935032]
[1724382405166,0.00852497,2640.4,2640.3,5.02204963]
[1724382405167,1.99379991,2640.4,2640.3,5.02204963]
[1724382405688,0.00852497,2640.4,2640.3,5.02204963]
[1724382406049,1.99379991,2640.4,2640.3,5.02204963]
[1724382406453,1.99379991,2640.4,2640.3,1.23460963]
[1724382406654,1.99298517,2640.4,2640.3,0.62269931]
[1724382407694,0.00852497,2640.4,2640.3,0.62269931]
[1724382407893,0.00852497,2640.4,2640.3,4.41013931]
[1724382408093,1.99298517,2640.4,2640.3,4.41013931]
[1724382408291,0.00852497,2640.4,2640.3,5.22990924]
[1724382410929,0.00852497,2640.4,2640.3,7.55370924]
[1724382413221,0.00852497,2640.4,2640.3,5.22990924]
[1724382420545,0.00852497,2640.4,2640.3,9.01734924]
[1724382424895,1.9809915,2640.9,2640.4,3.78719]
[1724382425100,5.52257044,2641.0,2640.5,4.85999592]
[1724382425302,5.52257044,2641.0,2640.5,4.93243906]
[1724382426887,5.52257044,2641.0,2640.6,3.78699]
[1724382427511,5.52257044,2641.0,2640.7,0.07234624]
[1724382427690,5.52257044,2641.0,2640.7,0.56557646]
[1724382428491,3.54157894,2641.0,2640.7,0.56557646]
[1724382428695,5.52236561,2641.0,2640.7,0.56557646]
[1724382429517,5.52236561,2641.0,2640.7,0.07234624]
[1724382433231,3.54157894,2641.0,2640.7,0.07234624]
[1724382433431,5.52246817,2641.0,2640.7,0.07234624]
[1724382434501,4.39108923,2641.0,2640.7,3.85920624]
[1724382436922,1.13137894,2640.9,2640.7,3.85920624]
[1724382438919,2.3612,2640.8,2640.7,3.85920624]
[1724382439256,2.3612,2640.8,2640.2,3.78756]
[1724382439257,2.3612,2640.2,2639.8,3.78809]
[1724382439440,2.3612,2640.2,2640.0,3.78785]
[1724382439441,1.13137894,2640.1,2640.0,3.78785]
[1724382439652,2.3612,2640.2,2640.0,3.78785]
[1724382440363,2.3612,2640.2,2640.0,3.7878]
[1724382440566,2.3612,2640.2,2640.0,3.78777]
[1724382440759,1.13137894,2640.3,2640.1,3.78764]
[1724382442548,4.31493041,2640.4,2640.2,3.78759]
[1724382446651,1.98163041,2640.3,2640.2,3.78759]
[1724382446836,1.13137894,2640.3,2640.2,3.78759]
[1724382447582,3.11300935,2640.3,2640.1,3.78769]
[1724382448890,1.98163041,2640.3,2640.1,3.78769]
[1724382451014,2.3333,2640.4,2640.1,3.78769]
[1724382451802,3.78702,2640.6,2640.1,3.78769]
[1724382451803,2.4697,2640.6,2640.2,3.78755]
[1724382452004,2.4697,2640.6,2640.2,4.33755]
[1724382452804,1.13137894,2640.5,2640.2,8.12506]
[1724382452971,1.13137894,2640.5,2640.2,4.33751]
[1724382453603,1.13137894,2640.5,2640.3,3.78743]
[1724382457489,2.4697,2640.6,2640.3,3.78743]
[1724382457690,2.4697,2640.6,2640.3,7.5748]
[1724382458020,2.4697,2640.6,2640.3,3.78737]
[1724382461423,4.45229211,2640.6,2640.3,3.78737]
[1724382462155,4.45229211,2640.6,2640.4,0.06146979]
[1724382462556,1.98259211,2640.6,2640.4,3.84873979]
[1724382463120,1.13137894,2640.7,2640.4,3.84873979]
[1724382464361,1.12320648,2640.7,2640.4,3.84873979]
[1724382466663,1.98230717,2640.6,2640.4,3.84873979]
[1724382468623,1.98187801,2640.6,2640.4,3.84873979]
[1724382472589,1.98187801,2640.6,2640.4,3.84876979]
[1724382472775,3.10508449,2640.7,2640.4,3.84876979]
[1724382473479,1.98159799,2640.6,2640.4,3.84876979]
[1724382473881,1.12320648,2640.7,2640.5,0.55]
[1724382473882,1.98159799,2640.7,2640.5,0.55]
[1724382474076,1.98159799,2640.7,2640.5,4.33707]
[1724382474257,1.98159799,2640.7,2640.6,0.05939546]
[1724382478418,1.98150579,2640.7,2640.6,0.05939546]
[1724382478714,4.44060579,2640.8,2640.6,0.05939546]
[1724382481521,4.44081731,2640.8,2640.6,0.05939546]
[1724382481912,1.98171731,2640.7,2640.6,0.05939546]
[1724382482924,4.44081731,2640.8,2640.6,0.05939546]
[1724382483132,1.98171731,2640.7,2640.6,3.84639546]
[1724382483443,1.98171731,2640.7,2640.6,0.05939546]
[1724382484883,1.98171731,2640.8,2640.6,0.05939546]
[1724382485299,1.98171731,2640.7,2640.6,0.05939546]
[1724382486293,1.98194447,2640.7,2640.6,0.05939546]
[1724382487828,1.98194447,2640.7,2640.6,3.84640546]
[1724382488000,1.98194447,2640.7,2640.6,4.66475301]
[1724382490927,1.98266527,2640.7,2640.6,4.66475301]
[1724382491691,1.98266527,2640.7,2640.6,3.84640546]
[1724382495398,3.51057727,2640.9,2640.6,3.84640546]
[1724382495594,1.98414945,2640.7,2640.6,3.84640546]
[1724382495797,1.98413425,2640.7,2640.6,3.84640546]
[1724382496907,1.98413425,2640.7,2640.6,7.63341546]
[1724382497101,1.98413425,2640.8,2640.7,3.78687]
[1724382497302,1.98413425,2640.9,2640.8,3.78673]
[1724382498015,1.98413425,2640.9,2640.8,3.84593877]
[1724382499238,1.98413425,2640.9,2640.8,4.39593877]
[1724382500531,1.98340382,2640.9,2640.8,4.39593877]
[1724382503040,1.98340382,2640.9,2640.8,11.3811838]
[1724382503273,1.98340382,2641.2,2641.1,3.7863]
[1724382503415,1.98340382,2641.3,2641.1,3.7863]
[1724382503819,1.98340382,2641.3,2641.2,0.05895302]
[1724382504039,1.98340382,2641.3,2641.2,3.84510302]
[1724382505249,1.98245566,2641.3,2641.2,3.84510302]
[1724382506446,1.98245566,2641.4,2641.2,3.84510302]
[1724382506767,1.98245566,2641.4,2641.3,3.78601]
[1724382507069,1.98245566,2641.4,2641.2,3.78608]
[1724382507383,1.98245566,2641.4,2641.3,0.05895302]
[1724382507720,1.98245566,2641.4,2641.2,7.57216]
[1724382507909,1.98245566,2641.4,2641.3,0.05895302]
[1724382508272,1.98245566,2641.4,2641.2,4.543276]
[1724382508775,1.98245566,2641.4,2641.3,0.05895302]
[1724382508908,1.98245566,2641.4,2641.3,3.84496302]
[1724382509113,1.98245566,2641.4,2641.3,3.78601]
[1724382509311,1.98245566,2641.4,2641.3,3.84496302]
[1724382509963,1.98109806,2641.4,2641.3,3.84496302]
[1724382512278,5.364877,2641.5,2641.3,3.84496302]
[1724382512456,2.37731767,2641.7,2641.5,3.78572]
[1724382512457,1.98109806,2641.6,2641.5,3.78572]
[1724382512840,4.43499806,2641.7,2641.5,3.78572]
[1724382513621,4.43499806,2641.7,2641.6,3.78558]
[1724382513822,2.4539,2641.7,2641.6,3.84425655]
[1724382514267,2.4539,2641.7,2641.6,0.05867655]
[1724382514480,4.43399242,2641.7,2641.6,0.05867655]
[1724382514982,2.2779,2641.6,2641.4,3.78573]
[1724382515183,3.40927894,2641.6,2641.4,3.78573]
[1724382516771,3.40927894,2641.6,2641.3,3.7859]
[1724382516984,3.40927894,2641.6,2641.3,4.543112]
[1724382517359,3.40927894,2641.6,2641.3,3.7859]
[1724382517646,3.40927894,2641.6,2641.3,7.57183]
[1724382518177,3.40927894,2641.6,2641.3,3.7859]
[1724382518963,3.40927894,2641.6,2641.3,7.57184]
[1724382519651,3.40927894,2641.6,2641.3,3.7859]
[1724382520385,3.40927894,2641.6,2641.3,4.543113]
[1724382520805,2.2779,2641.6,2641.3,8.329053]
[1724382521906,2.2779,2641.6,2641.4,0.05867655]
[1724382527987,2.2779,2641.6,2641.4,3.84452655]
[1724382529751,3.45817894,2641.8,2641.4,3.84452655]
[1724382530356,3.45817894,2641.8,2641.5,3.78571]
[1724382530556,7.42639869,2642.0,2641.5,3.84379225]
[1724382530863,5.4468,2642.0,2641.6,4.39987922]
[1724382531278,2.4468,2642.0,2641.6,4.39987922]
[1724382531606,2.4468,2642.0,2641.7,0.05808225]
[1724382532359,2.4468,2642.0,2641.7,3.84351225]
[1724382532590,2.4468,2642.0,2641.7,3.84344225]
[1724382533589,2.4468,2642.0,2641.8,3.78527]
[1724382533996,2.4468,2642.0,2641.9,0.05808225]
[1724382535188,2.4468,2642.0,2641.9,3.84323225]
[1724382535390,2.3799,2642.2,2641.9,3.84323225]
[1724382536475,2.3799,2642.2,2641.9,0.05808225]
[1724382536883,2.3799,2642.2,2641.7,7.57067]
[1724382537089,4.35949869,2642.2,2642.0,0.05788191]
[1724382537450,4.35949869,2642.2,2642.1,0.05788191]
[1724382537756,3.51127894,2642.2,2641.8,3.78529]
[1724382538009,3.51127894,2642.2,2642.1,0.05788191]
[1724382538172,3.51127894,2642.2,2641.8,3.78529]
[1724382538369,3.51127894,2642.2,2642.1,0.05755724]
[1724382538573,3.51127894,2642.2,2641.8,3.78529]
[1724382538787,3.51127894,2642.2,2642.1,0.05755724]
[1724382538974,3.51127894,2642.2,2641.8,3.78529]
[1724382539172,5.48964656,2642.2,2642.1,0.05755724]
[1724382539375,9.27437656,2642.2,2641.8,3.78529]
[1724382539594,9.27437656,2642.2,2642.1,0.05755724]
[1724382539803,2.3799,2642.2,2641.8,3.78521]
[1724382540005,5.76295762,2642.3,2642.1,0.05755724]
[1724382540222,5.76295762,2642.3,2641.9,0.4767767]
[1724382540385,5.76295762,2642.3,2642.2,0.05755724]
[1724382540704,5.76295762,2642.3,2641.9,0.4767767]
[1724382540859,5.76295762,2642.3,2642.2,0.05755724]
[1724382541084,5.76350646,2642.3,2641.8,3.78521]
[1724382541276,3.78459,2642.3,2642.2,0.05563867]
[1724382541823,3.78459,2642.3,2641.8,3.78521]
[1724382542133,2.3601,2642.1,2641.8,3.78521]
[1724382542453,2.3601,2642.1,2641.8,4.75367159]
[1724382543074,4.33918987,2642.1,2641.8,4.75367159]
[1724382544409,1.97908987,2642.2,2641.8,4.75367159]
[1724382544587,1.97908987,2642.2,2641.8,10.99067159]
[1724382544914,8.12377987,2642.3,2641.9,1.19732286]
[1724382545815,1.97908987,2642.3,2642.0,3.785]
[1724382545981,9.25499881,2642.4,2642.0,3.785]
[1724382546180,8.12361987,2642.4,2642.0,4.75859945]
[1724382546687,4.33918987,2642.4,2642.0,4.75859945]
[1724382546892,4.33918987,2642.4,2642.1,3.78486]
[1724382547193,2.3601,2642.4,2642.1,3.78486]
[1724382547389,1.97908987,2642.5,2642.2,3.78472]
[1724382548581,2.3644,2642.4,2642.2,3.78472]
[1724382550829,2.3098,2642.3,2641.9,3.78512]
[1724382550989,2.3098,2642.3,2641.9,4.542151]
[1724382550990,1.13137894,2642.2,2641.9,4.542151]
[1724382552096,1.13137894,2642.2,2642.0,3.84031835]
[1724382552661,2.3098,2642.3,2642.0,3.84031835]
[1724382552967,4.28978353,2642.3,2642.0,7.62524835]
[1724382553116,2.3098,2642.3,2642.1,4.62306793]
[1724382553830,2.3098,2642.3,2642.2,0.05533835]
[1724382556361,2.3098,2642.3,2642.2,3.84005835]
[1724382557217,1.97917692,2642.4,2642.2,3.84005835]
[1724382558148,1.97917692,2642.4,2642.3,3.78458]
[1724382558331,1.97917692,2642.4,2642.3,3.83982857]
[1724382559636,2.3098,2642.5,2642.4,3.78443]
[1724382559637,4.28936636,2642.5,2642.4,3.78443]
[1724382559838,1.97956636,2642.5,2642.4,3.78443]
[1724382560033,1.97956636,2642.6,2642.4,3.78443]
[1724382560246,1.97956636,2642.6,2642.5,3.78429]
[1724382560663,1.97956636,2642.6,2642.5,3.83953857]
[1724382562642,1.97956636,2642.6,2642.5,0.05524857]
[1724382564078,1.97945354,2642.6,2642.5,0.05524857]
[1724382564957,4.96117894,2642.7,2642.5,0.05524857]
[1724382567579,4.96117894,2642.7,2642.3,3.78457]
[1724382567783,1.97971486,2642.5,2642.3,4.62531679]
[1724382568809,1.97986156,2642.5,2642.3,4.62531679]
[1724382570504,1.97186156,2642.5,2642.3,4.62531679]
[1724382571400,1.97186156,2642.5,2642.3,0.84074679]
[1724382571723,11.12101281,2642.7,2642.3,0.84074679]
[1724382572026,11.12101281,2642.7,2642.2,3.78467]
[1724382572393,11.12101281,2642.7,2642.2,7.56932]
[1724382573430,11.12218514,2642.7,2642.2,7.56932]
[1724382574287,2.3770062,2642.6,2642.2,7.56932]
[1724382574519,2.3770062,2642.6,2642.2,3.78465]
[1724382576556,6.1611862,2642.6,2642.2,3.78465]
[1724382576714,2.3770062,2642.6,2642.2,3.78465]
[1724382577246,2.3770062,2642.6,2642.3,3.78458]
[1724382577784,1.98189919,2642.4,2642.3,3.78458]
[1724382578051,1.98188,2642.4,2642.3,3.78458]
[1724382578236,2.378256,2642.6,2642.3,3.78458]
[1724382578543,1.98203035,2642.4,2642.3,3.78458]
[1724382578747,2.378256,2642.6,2642.3,4.6405576]
[1724382579052,1.98202393,2642.4,2642.3,3.78458]
[1724382580219,1.98218858,2642.4,2642.2,3.78471]
[1724382580418,1.98218858,2642.3,2642.2,3.78471]
[1724382580984,1.98218858,2642.4,2642.2,3.78471]
[1724382581153,1.98218858,2642.4,2642.3,0.756956]
[1724382581471,2.3786263,2642.6,2642.3,0.756956]
[1724382581652,2.3786263,2642.6,2642.2,3.78471]
[1724382581963,1.98225777,2642.3,2642.2,3.78471]
[1724382587572,2.37928684,2642.5,2642.2,3.78471]
[1724382587869,1.98278134,2642.3,2642.2,3.78471]
[1724382588017,1.98278134,2642.3,2642.2,4.775056]
[1724382588218,2.37928684,2642.5,2642.2,4.775056]
[1724382588414,2.37928684,2642.5,2642.2,3.78471]
[1724382590256,2.37928684,2642.4,2642.2,3.78471]
[1724382591188,2.4836,2642.3,2641.9,4.542071]
[1724382591363,1.98397509,2642.1,2641.9,7.57012]
[1724382591929,1.98397509,2642.1,2642.0,3.78501]
[1724382592131,2.4836,2642.3,2642.0,3.78501]
[1724382592333,1.98398469,2642.1,2642.0,3.78501]
[1724382592521,1.98398469,2642.1,2642.0,4.542015]
[1724382592726,1.98398469,2642.2,2642.1,3.78486]
[1724382593163,1.98398469,2642.2,2642.1,7.56972]
[1724382594986,4.85848163,2642.4,2642.1,3.78486]
[1724382595150,1.98395557,2642.2,2642.1,3.78486]
[1724382595365,4.85848163,2642.4,2642.1,4.6175515]
[1724382595690,4.85848163,2642.4,2642.1,3.78486]
[1724382595897,4.85848163,2642.4,2642.1,7.56972]
[1724382596396,4.85848163,2642.4,2642.1,3.78486]
[1724382596769,4.85848163,2642.4,2642.0,3.78499]
[1724382597088,2.38078163,2642.3,2642.1,0.05347248]
[1724382597312,2.38078163,2642.3,2641.9,7.57014]
[1724382597477,1.98387047,2642.0,2641.9,7.57014]
[1724382597642,1.98387047,2642.0,2641.9,8.327154]
[1724382598213,1.98387047,2642.0,2641.9,4.542084]
[1724382600457,8.15641047,2642.0,2641.5,3.78564]
[1724382600779,1.13137894,2641.7,2641.4,3.78585]
[1724382600952,1.98364668,2641.5,2641.4,3.78585]
[1724382601729,1.98364668,2641.6,2641.4,3.78585]
[1724382601890,4.37754668,2641.6,2641.4,3.78585]
[1724382602528,2.3939,2641.6,2641.5,3.78572]
[1724382602688,3.11502562,2641.7,2641.5,3.78572]
[1724382602689,1.98364668,2641.7,2641.5,3.78572]
[1724382603232,1.98364668,2641.7,2641.6,3.78558]
[1724382603526,4.30754668,2641.8,2641.6,3.78558]
[1724382603733,4.30754668,2641.8,2641.7,3.78544]
[1724382604613,4.30501113,2641.8,2641.7,3.78544]
[1724382606376,2.3239,2641.8,2641.7,3.78544]
[1724382612092,2.3239,2641.8,2641.7,3.83626741]
[1724382616312,6.10919,2641.8,2641.7,0.05082741]
[1724382616626,2.4436,2641.7,2641.3,3.78587]
[1724382616808,1.13137894,2641.6,2641.3,3.78587]
[1724382617034,1.13137894,2641.6,2641.4,3.78586]
[1724382619109,1.13137894,2641.6,2641.3,3.78587]
[1724382619511,1.13137894,2641.6,2641.2,3.78615]
[1724382619714,1.13137894,2641.6,2641.3,3.78598]
[1724382622013,1.13137894,2641.6,2641.3,3.78594]
[1724382622415,1.13137894,2641.6,2641.3,7.57188]
[1724382622848,1.13137894,2641.6,2641.3,3.78594]
[1724382623050,1.13137894,2641.6,2641.3,7.57188]
[1724382627130,1.13137894,2641.6,2641.4,3.83541407]
[1724382627467,1.13137894,2641.6,2641.4,0.04955407]
[1724382627960,1.13137894,2641.6,2641.4,3.83542407]
[1724382630444,1.13137894,2641.6,2641.4,0.04955407]
[1724382631851,1.13137894,2641.6,2641.4,0.1082411]
[1724382632489,1.13137894,2641.6,2641.5,3.78572]
[1724382633006,1.13137894,2641.6,2641.5,3.89396111]
[1724382634551,1.13137894,2641.6,2641.5,0.10824111]
[1724382635000,1.13137894,2641.6,2641.4,3.78585]
[1724382635198,1.13137894,2641.6,2641.5,0.10824111]
[1724382638311,3.11032961,2641.6,2641.3,3.78589]
[1724382638474,3.11032961,2641.6,2641.5,0.10823421]
[1724382638688,2.399,2641.5,2640.7,2.4612]
[1724382639008,2.399,2641.5,2640.7,3.78674]
[1724382639009,1.13137894,2641.1,2640.7,3.78674]
[1724382639379,1.13137894,2641.1,2640.8,3.78671]
[1724382641360,1.13137894,2641.1,2640.8,7.57333]
[1724382641577,1.13137894,2641.1,2640.9,3.78657]
[1724382642170,1.13137894,2641.1,2641.0,0.10112166]
[1724382644038,1.97842859,2641.3,2641.0,0.10112166]
[1724382644250,3.10980753,2641.3,2641.0,0.10112166]
[1724382645085,4.43192859,2641.2,2641.0,0.10112166]
[1724382645578,1.13137894,2641.1,2641.0,0.10112166]
[1724382646342,2.4535,2641.2,2641.0,0.10112166]
[1724382649472,2.4535,2641.2,2641.0,3.88753166]
[1724382650164,1.13137894,2641.3,2641.0,3.88753166]
[1724382650364,1.13137894,2641.3,2641.0,0.10112166]
[1724382650870,3.10918206,2641.3,2641.0,0.10112166]
[1724382651385,1.13137894,2641.3,2641.0,0.10112166]
[1724382651599,3.10850268,2641.3,2641.0,0.10112166]
[1724382652042,1.13137894,2641.3,2641.0,0.10112166]
[1724382655481,3.10850268,2641.3,2641.0,0.10112166]
[1724382655664,1.13137894,2641.3,2641.0,0.10112166]
[1724382655969,3.10850268,2641.3,2641.0,0.10112166]
[1724382656149,3.10909058,2641.3,2641.0,0.10112166]
[1724382657057,1.13137894,2641.3,2641.0,0.10112166]
[1724382657462,3.10909058,2641.3,2641.0,0.10112166]
[1724382658699,2.4225,2641.1,2641.0,0.10112166]
[1724382658874,3.55387894,2641.1,2641.0,0.10112166]
[1724382667150,2.4225,2641.1,2641.0,0.10112166]
[1724382670918,3.10910731,2641.3,2641.0,0.10112166]
[1724382671189,1.97772837,2641.2,2641.0,0.10112166]
[1724382672653,3.10910731,2641.3,2641.0,0.10112166]
[1724382673096,3.10910731,2641.3,2641.1,3.78628]
[1724382673298,3.10910731,2641.3,2641.1,3.8878504]
[1724382673803,3.1093382,2641.3,2641.1,3.8878504]
[1724382677495,1.97795926,2641.2,2641.1,0.1015704]
[1724382677682,1.97795926,2641.2,2640.9,7.57297]
[1724382677878,1.97795926,2641.2,2641.1,0.10157733]
[1724382678109,1.97795926,2641.2,2640.9,7.57297]
[1724382678428,1.97873322,2641.2,2641.1,0.10157733]
[1724382678596,1.97873322,2641.2,2640.9,7.57297]
[1724382678791,1.97873322,2641.2,2641.1,0.10157733]
[1724382679008,1.97873322,2641.2,2640.9,7.57297]
[1724382679211,1.97873322,2641.2,2641.1,0.10157733]
[1724382679698,1.97873322,2641.2,2640.9,3.78648]
[1724382679893,1.97873322,2641.2,2641.1,0.10157733]
[1724382680282,1.97873322,2641.2,2640.7,7.57352]
[1724382680537,3.43837894,2641.0,2640.7,3.78676]
[1724382680718,1.13137894,2640.8,2640.1,2.484]
[1724382680930,1.13137894,2640.6,2640.3,3.78732]
[1724382681237,1.13137894,2640.6,2640.0,7.36]
[1724382681238,2.307,2640.3,2640.0,7.36]
[1724382681406,1.13137894,2640.1,2640.0,7.36]
[1724382681594,1.13137894,2640.1,2639.7,3.78823]
[1724382681799,1.13137894,2640.1,2639.9,3.78795]
[1724382681995,2.307,2640.3,2640.0,3.78787]
[1724382682736,1.13137894,2640.4,2640.2,3.78759]
[1724382683036,1.13137894,2640.4,2640.2,3.78749]
[1724382686403,2.3005,2640.5,2640.2,3.78749]
[1724382686727,1.97946652,2640.6,2640.2,3.78749]
[1724382686728,1.13137894,2640.6,2640.2,3.78749]
[1724382686936,1.13137894,2640.6,2640.3,0.10205371]
[1724382687434,1.13137894,2640.6,2640.2,3.78749]
[1724382687907,1.13137894,2640.6,2640.3,0.10264778]
[1724382688131,1.13137894,2640.6,2640.2,3.78746]
[1724382688331,1.13137894,2640.6,2640.4,0.10264778]
[1724382688548,1.13137894,2640.6,2640.2,3.78746]
[1724382688730,1.13137894,2640.6,2640.5,0.10264778]
[1724382688959,1.13137894,2640.6,2640.2,3.78746]
[1724382689268,1.13137894,2640.6,2640.5,0.10264778]
[1724382689470,1.13137894,2640.6,2640.2,3.78746]
[1724382689629,1.13137894,2640.6,2640.5,0.10264778]
[1724382689830,1.13137894,2640.6,2640.2,3.78746]
[1724382690134,1.13137894,2640.6,2640.3,0.10264778]
[1724382690471,1.13137894,2640.6,2640.2,3.78746]
[1724382690643,1.13137894,2640.6,2640.4,0.10264778]
[1724382690857,1.13137894,2640.6,2640.2,3.78746]
[1724382691057,1.13137894,2640.6,2640.5,0.10264778]
[1724382691538,1.13137894,2640.6,2640.2,3.78746]
[1724382691737,1.13137894,2640.6,2640.3,0.10264778]
[1724382691951,1.13137894,2640.6,2640.2,3.78746]
[1724382692145,1.13137894,2640.6,2640.3,0.10264778]
[1724382692485,1.13137894,2640.4,2640.0,6.24107]
[1724382692683,2.3238,2640.1,2640.0,3.78777]
[1724382692883,2.3238,2640.1,2639.6,4.78835]
[1724382692884,6.11154,2640.1,2639.6,4.78835]
[1724382693057,1.13137894,2639.8,2639.6,4.78835]
[1724382693258,1.13137894,2639.8,2639.6,1.0]
[1724382694059,1.13137894,2639.8,2639.6,0.99147503]
[1724382695962,1.13137894,2639.8,2639.6,4.77991503]
[1724382698686,1.13137894,2639.8,2639.6,8.56828503]
[1724382699473,3.48577894,2639.8,2639.6,4.77984503]
[1724382702075,3.48577894,2639.8,2639.7,0.10292421]
[1724382702651,1.13137894,2639.8,2639.7,3.89122421]
[1724382710415,2.3544,2640.0,2639.8,3.78806]
[1724382710622,2.3544,2640.0,2639.9,3.78802]
[1724382710794,2.3544,2640.0,2639.9,3.89176639]
[1724382711989,2.3544,2640.0,2639.9,0.10374639]
[1724382712513,3.48577894,2640.0,2639.9,0.10374639]
[1724382713296,2.3544,2640.0,2639.9,3.89176639]
[1724382713509,2.3544,2640.0,2639.9,0.10374639]
[1724382713809,3.48577894,2640.0,2639.9,0.10374639]
[1724382724158,1.97452637,2640.3,2640.2,3.78759]
[1724382724357,4.36162637,2640.8,2640.6,3.78691]
[1724382724557,4.36162637,2640.8,2640.7,3.78687]
[1724382724757,3.10590531,2641.0,2640.7,3.78687]
[1724382724955,3.10590531,2641.0,2640.6,7.57384]
[1724382725156,3.10590531,2641.0,2640.7,0.10364962]
[1724382725592,3.10590531,2641.0,2640.7,3.89043962]
[1724382725948,3.49452637,2641.1,2640.9,3.7865]
[1724382726156,1.52,2641.1,2641.0,0.10337319]
[1724382729085,2.65137894,2641.1,2641.0,0.10337319]
[1724382729288,6.43767894,2641.1,2640.6,3.78694]
[1724382729488,6.43767894,2641.1,2641.0,0.10335937]
[1724382729692,6.43767894,2641.1,2640.6,3.78694]
[1724382729986,6.43767894,2641.1,2641.0,0.10335937]
[1724382730387,2.65137894,2641.1,2641.0,0.10335937]